bitfinex/quotes_ETHUSD_20250721
["timestamp","ask_amount","ask_price","bid_price","bid_amount"]
[1753110512991,1.25772465,3834.7,3834.6,3.56833393]
[1753110513204,0.55895914,3834.7,3834.6,4.00453393]
[1753110513619,1.49081793,3834.7,3834.6,7.66838694]
[1753110513823,1.25785728,3834.7,3834.6,7.66838694]
[1753110514398,0.55895914,3834.7,3834.6,7.66838694]
[1753110514596,0.55895914,3834.7,3834.6,11.76438694]
[1753110514799,1.25783319,3834.7,3834.6,11.76438694]
[1753110515006,1.49081793,3834.7,3834.6,11.76438694]
[1753110515187,0.55895914,3834.7,3834.6,11.76438694]
[1753110515717,1.49081793,3834.7,3834.6,11.76438694]
[1753110516294,1.49081793,3834.7,3834.6,4.00453393]
[1753110516627,0.55,3834.6,3834.2,1.2671]
[1753110516843,0.55,3834.4,3834.2,0.8309]
[1753110517018,1.10895914,3834.3,3834.1,0.1304]
[1753110517325,0.55,3834.6,3834.1,0.1304]
[1753110517521,0.55,3834.4,3834.2,0.4362]
[1753110517684,1.10882002,3834.3,3834.2,0.4362]
[1753110517886,0.55,3834.3,3834.2,3.04430599]
[1753110519629,1.10882658,3834.3,3834.2,3.04430599]
[1753110519839,0.55,3834.3,3834.2,3.04430599]
[1753110520024,1.10882658,3834.3,3834.2,3.04430599]
[1753110520836,0.55882658,3834.3,3834.2,3.04430599]
[1753110521337,0.55882658,3834.4,3834.3,3.40253797]
[1753110521525,0.55882658,3834.7,3834.6,2.60783393]
[1753110521736,0.55882658,3834.8,3834.7,2.60776592]
[1753110521931,0.02,3834.9,3834.8,3.36629792]
[1753110522255,1e-08,3834.9,3834.8,7.86859221]
[1753110522406,0.69850003,3836.0,3835.8,2.60701809]
[1753110522608,0.69850003,3836.3,3835.8,7.61301809]
[1753110522809,0.69850003,3836.3,3835.8,8.04921809]
[1753110523126,1.06145879,3836.6,3835.8,3.95421809]
[1753110523127,0.69850003,3836.1,3835.8,3.95421809]
[1753110523331,0.69850003,3836.4,3835.8,8.04921809]
[1753110523636,0.1296,3836.6,3835.8,8.04921809]
[1753110523946,0.1296,3836.6,3835.8,9.11485021]
[1753110524132,0.1296,3836.6,3835.8,12.11485021]
[1753110524447,0.55,3836.5,3835.8,12.11485021]
[1753110525305,0.002,3836.7,3835.8,12.11485021]
[1753110525513,0.002,3836.7,3836.6,3.37257448]
[1753110525710,0.002,3836.7,3836.6,7.59717448]
[1753110525905,0.002,3836.7,3836.6,8.03337448]
[1753110526138,0.55,3837.7,3836.6,6.49089351]
[1753110526304,0.0336,3837.8,3837.3,2.60598773]
[1753110526519,0.0336,3837.8,3837.2,0.1296]
[1753110526929,0.0336,3837.8,3837.2,2.73566392]
[1753110527126,0.4626,3837.9,3836.8,4.094]
[1753110527447,0.55,3837.2,3836.8,4.094]
[1753110527658,0.55,3837.2,3836.7,0.1296]
[1753110527659,2.60625978,3837.0,3836.7,0.1296]
[1753110527822,3.15634477,3836.8,3836.3,0.1296]
[1753110528026,0.55,3836.6,3836.3,0.1296]
[1753110528361,0.55,3836.8,3836.3,0.1296]
[1753110529012,0.55,3836.6,3836.3,0.1296]
[1753110529220,0.55,3836.8,3836.4,2.60655143]
[1753110529518,3.15634043,3836.8,3836.3,0.5618]
[1753110529853,0.55,3836.8,3836.3,3.16846127]
[1753110530055,0.55,3836.8,3836.3,0.5618]
[1753110530212,3.15634407,3836.8,3836.3,0.5618]
[1753110530417,3.15634407,3836.8,3836.3,0.1296]
[1753110530720,1.13920976,3836.8,3836.3,2.73621569]
[1753110530926,1.13920976,3836.8,3836.3,0.1296]
[1753110531136,1.13920976,3836.8,3836.3,2.73621455]
[1753110531361,1.13920976,3836.8,3836.3,0.1296]
[1753110532452,3.2862783,3836.3,3836.2,0.06396558]
[1753110533111,0.6796,3836.3,3836.2,0.06396558]
[1753110533544,0.6796,3836.3,3836.2,2.67071183]
[1753110533712,0.6796,3836.3,3836.2,3.10291183]
[1753110533912,0.55,3836.6,3836.5,2.60650128]
[1753110534175,0.55,3836.6,3836.2,0.06396558]
[1753110534486,0.55,3836.6,3836.2,0.49616558]
[1753110534640,0.55,3836.6,3836.2,3.10291028]
[1753110535338,0.55,3836.6,3836.2,0.49616558]
[1753110536083,0.55,3836.6,3836.2,3.10290869]
[1753110536285,0.55,3836.6,3836.2,0.49616558]
[1753110536952,0.87858872,3836.6,3836.2,0.06396558]
[1753110537277,3.1566783,3836.3,3836.2,0.06396558]
[1753110537473,3.9326783,3836.3,3836.2,0.06396558]
[1753110537685,4.3752783,3836.3,3836.2,0.06396558]
[1753110538881,7.3752783,3836.3,3836.2,0.06396558]
[1753110539178,0.55,3835.3,3835.1,0.02]
[1753110539362,0.1296,3835.2,3835.1,0.02]
[1753110539563,3.97492594,3835.2,3835.1,0.02]
[1753110539767,7.41752594,3835.2,3835.1,0.02]
[1753110539938,21.91752594,3835.2,3835.1,0.02]
[1753110540275,23.17029366,3835.2,3835.1,0.02]
[1753110540476,8.67029366,3835.2,3835.1,0.02]
[1753110540839,23.17029366,3835.2,3835.1,0.02]
[1753110543382,27.26329366,3835.2,3835.1,0.02]
[1753110544056,12.76329366,3835.2,3835.1,0.02]
[1753110544469,27.26329366,3835.2,3835.1,0.02]
[1753110545445,26.82069366,3835.2,3835.1,0.02]
[1753110545664,27.26329366,3835.2,3835.1,0.02]
[1753110546590,23.17029366,3835.2,3835.1,0.02]
[1753110546771,27.26429366,3835.2,3835.1,0.02]
[1753110547085,22.72769366,3835.2,3835.1,0.02]
[1753110547286,26.82069366,3835.2,3835.1,0.02]
[1753110547688,12.76329366,3835.2,3835.1,0.02]
[1753110548079,27.26329366,3835.2,3835.1,0.02]
[1753110548656,6.97492594,3835.2,3835.1,0.02]
[1753110548850,4.643,3835.2,3835.1,0.02]
[1753110549083,0.7827,3836.2,3835.1,0.4522]
[1753110549290,1.16589939,3836.2,3835.2,2.60742594]
[1753110549489,1.2253,3836.6,3835.4,0.7539]
[1753110549688,0.1296,3835.6,3835.5,3.03937207]
[1753110549889,0.1296,3835.6,3835.5,0.4322]
[1753110550092,4.094,3835.8,3835.5,3.039422]
[1753110550295,4.2236,3836.1,3835.4,0.8835]
[1753110550495,4.2236,3836.1,3835.4,0.7539]
[1753110550496,0.1296,3835.7,3835.4,0.7539]
[1753110550679,0.55,3835.6,3835.5,0.4322]
[1753110551810,0.7827,3836.6,3835.5,0.81154589]
[1753110552004,0.55,3835.9,3835.5,0.4322]
[1753110552207,0.1296,3836.0,3835.5,2.60721196]
[1753110552406,0.1296,3836.0,3835.6,0.4322]
[1753110552706,0.55,3835.9,3835.8,2.60701809]
[1753110553020,0.7851,3837.0,3836.3,2.6066467]
[1753110553184,0.1296,3836.6,3836.4,3.03878803]
[1753110553385,0.1296,3836.6,3836.5,0.4322]
[1753110554107,0.1296,3836.6,3836.5,3.03874242]
[1753110554608,0.6796,3836.6,3836.5,3.03874242]
[1753110555426,0.55,3836.6,3836.5,3.03874242]
[1753110555917,0.55,3836.6,3836.5,3.83004242]
[1753110556209,0.55,3836.6,3836.5,1.2235]
[1753110556396,0.55,3836.6,3836.5,0.7913]
[1753110557017,3.15661036,3836.4,3836.3,0.1296]
[1753110557216,4.093,3836.6,3835.6,0.7535]
[1753110557419,2.6066783,3836.3,3835.6,0.7535]
[1753110557733,0.55,3835.9,3835.6,0.7535]
[1753110557949,3.15695171,3835.9,3835.6,0.7535]
[1753110558122,0.55,3835.7,3835.1,0.83029292]
[1753110558330,3.15709116,3835.7,3835.1,0.83029292]
[1753110558617,3.15703215,3835.8,3835.1,3.43776891]
[1753110558822,3.15703215,3835.8,3835.1,0.83029292]
[1753110559026,3.15690315,3836.0,3835.1,3.43777751]
[1753110559232,0.55,3836.0,3835.1,0.83029292]
[1753110559424,0.55,3835.8,3835.1,0.83029292]
[1753110559746,0.55,3835.8,3835.1,0.07679292]
[1753110560033,3.15742594,3835.2,3835.1,0.07679292]
[1753110561007,3.63232594,3835.2,3835.1,0.07679292]
[1753110561593,4.44502594,3835.2,3835.1,0.07679292]
[1753110562309,4.44502594,3835.2,3835.1,0.02]
[1753110562513,5.08456282,3835.2,3835.1,0.02]
[1753110562900,5.55946282,3835.2,3835.1,0.02]
[1753110563549,9.65146282,3835.2,3835.1,0.02]
[1753110565227,9.65246282,3835.2,3835.1,0.02]
[1753110565422,5.55946282,3835.2,3835.1,0.02]
[1753110565661,9.65146282,3835.2,3835.1,0.02]
[1753110565833,9.17656282,3835.2,3835.1,0.02]
[1753110566033,23.67656282,3835.2,3835.1,0.02]
[1753110566244,19.58456282,3835.2,3835.1,0.02]
[1753110566443,20.05946282,3835.2,3835.1,0.02]
[1753110566652,24.15146282,3835.2,3835.1,0.02]
[1753110567457,23.67656282,3835.2,3835.1,0.02]
[1753110567842,3.15742594,3835.2,3835.1,0.02]
[1753110568044,4.092,3835.3,3835.1,0.4733]
[1753110568445,0.55,3835.2,3835.1,0.021]
[1753110568771,3.15742594,3835.2,3835.1,0.021]
[1753110571551,7.24942594,3835.2,3835.1,0.021]
[1753110571746,10.15999868,3835.2,3835.1,0.021]
[1753110572353,4.642,3835.2,3835.1,0.021]
[1753110572550,0.8329,3835.7,3835.1,0.021]
[1753110572786,0.1296,3835.2,3835.1,0.4743]
[1753110573078,4.2216,3835.2,3835.1,0.4743]
[1753110573285,4.7716,3835.2,3835.1,0.4743]
[1753110573855,1.88,3836.4,3835.1,1.60669201]
[1753110574089,0.7996,3837.0,3835.2,0.4533]
[1753110574287,4.092,3836.9,3836.3,0.8242]
[1753110574447,4.092,3836.9,3836.4,2.60657808]
[1753110574791,0.1296,3836.6,3836.5,0.4533]
[1753110574952,0.1296,3836.6,3836.5,3.05984242]
[1753110575154,0.1296,3836.6,3836.5,0.4533]
[1753110575348,0.1296,3836.6,3835.6,2.60714127]
[1753110575349,0.1296,3836.6,3835.8,0.798]
[1753110575609,0.55,3836.2,3835.8,3.40501288]
[1753110575811,0.55,3836.2,3835.9,3.06023977]
[1753110575969,0.55,3836.2,3836.1,2.60681421]
[1753110576165,2.6062406,3837.0,3836.1,2.60681421]
[1753110576387,0.1296,3836.6,3836.2,3.06004163]
[1753110576666,0.70050003,3837.8,3837.1,2.60607456]
[1753110576898,0.1296,3837.4,3837.1,0.4533]
[1753110577100,0.1296,3837.4,3837.3,2.605999]
[1753110577413,0.1296,3837.4,3837.3,3.059299]
[1753110577574,0.1296,3837.4,3837.3,0.4533]
[1753110577776,0.1296,3837.4,3837.3,3.059299]
[1753110578115,0.002,3837.8,3837.4,2.60593109]
[1753110578319,0.1316,3837.8,3837.4,0.4533]
[1753110578514,0.1316,3837.8,3837.2,0.91316066]
[1753110578515,0.1316,3837.8,3837.5,0.4533]
[1753110578832,0.1316,3837.8,3837.5,3.05915705]
[1753110579005,0.1316,3837.8,3837.6,0.4533]
[1753110579519,0.6816,3837.8,3837.7,0.4533]
[1753110579723,0.002,3837.8,3837.7,3.05902738]
[1753110579930,0.002,3837.8,3837.7,3.18862738]
[1753110580312,0.002,3837.8,3837.3,0.05115527]
[1753110580496,14.502,3837.8,3837.6,0.4533]
[1753110580833,0.55846571,3837.7,3837.6,0.4533]
[1753110581343,0.002,3837.8,3837.6,0.4533]
[1753110581496,14.5,3837.7,3837.5,2.60579989]
[1753110581696,14.5,3837.7,3837.6,2.60579528]
[1753110582293,14.5,3837.7,3837.4,0.1296]
[1753110582294,0.55,3837.6,3837.4,0.1296]
[1753110582523,0.55,3837.6,3837.3,0.05115527]
[1753110582834,14.5,3837.7,3837.4,0.4533]
[1753110583032,14.5,3837.7,3837.6,2.60579528]
[1753110583253,0.02,3837.9,3837.7,3.41362738]
[1753110583457,0.02,3838.9,3838.5,2.60518431]
[1753110583627,14.52,3838.9,3838.5,3.43913615]
[1753110583818,0.02,3838.9,3838.5,11.5868769]
[1753110584013,0.02,3838.9,3838.5,11.56082506]
[1753110584433,14.52,3838.9,3838.5,11.56082506]
[1753110584630,0.02,3838.9,3838.5,11.56082506]
[1753110584830,0.02,3838.9,3838.5,7.47082506]
[1753110585033,0.02,3838.9,3838.5,11.56082506]
[1753110586159,0.02,3838.9,3838.5,7.95538431]
[1753110586658,0.02,3838.9,3838.5,3.86638431]
[1753110587219,0.02,3838.9,3838.5,7.95538431]
[1753110587415,0.02,3838.9,3838.5,6.86638431]
[1753110587652,0.02,3838.9,3838.5,10.95538431]
[1753110587860,0.02,3838.9,3838.5,12.31145451]
[1753110588042,0.02,3838.9,3838.8,3.43798072]
[1753110588219,0.02,3838.9,3838.8,10.52698072]
[1753110588422,0.02,3838.9,3838.8,10.98178072]
[1753110589325,1e-08,3838.9,3838.8,10.98178072]
[1753110589525,0.002,3839.4,3839.3,3.43504147]
[1753110589736,1e-08,3839.4,3839.3,10.54908788]
[1753110589959,1e-08,3840.0,3839.9,2.60423448]
[1753110590143,0.4343,3842.2,3840.8,3.36482424]
[1753110590144,2.60299309,3841.8,3840.8,3.36482424]
[1753110590460,14.52,3840.9,3840.8,7.45282424]
[1753110590674,14.52,3840.9,3840.8,7.90762424]
[1753110590883,14.52,3840.9,3840.8,4.087]
[1753110591030,15.07,3840.9,3840.3,0.02603963]
[1753110591229,15.07,3840.9,3840.6,2.60375982]
[1753110591528,15.07,3840.9,3840.5,3.0]
[1753110591872,15.07,3840.9,3840.8,2.60362424]
[1753110592072,15.07,3840.9,3840.2,3.365228]
[1753110592073,14.52,3840.9,3840.2,0.7612]
[1753110592366,14.52,3840.9,3840.8,2.65194285]
[1753110592572,14.52,3840.9,3840.8,6.73894285]
[1753110593065,0.02,3840.9,3840.8,6.73894285]
[1753110593292,0.02,3840.9,3840.8,7.32334285]
[1753110593754,0.02,3840.9,3840.8,0.17791861]
[1753110594098,1.3819,3840.9,3840.8,0.04831861]
[1753110594304,1.52009,3840.9,3840.8,0.04831861]
[1753110594596,16.02009,3840.9,3840.8,0.04831861]
[1753110594796,18.62364645,3840.9,3840.8,0.04831861]
[1753110595187,15.20819,3840.9,3840.8,0.04831861]
[1753110595387,17.81174645,3840.9,3840.8,0.04831861]
[1753110595593,18.24604645,3840.9,3840.8,0.04831861]
[1753110596469,17.81174645,3840.9,3840.8,0.04831861]
[1753110597992,18.24604645,3840.9,3840.8,0.04831861]
[1753110598510,17.81174645,3840.9,3840.8,0.04831861]
[1753110599761,14.52,3840.9,3840.8,0.04831861]
[1753110599962,0.02,3840.9,3840.8,3.87384285]
[1753110600203,0.02,3840.9,3840.8,3.89987909]
[1753110600415,0.02,3840.9,3840.8,3.87384285]
[1753110600712,0.02,3840.9,3840.8,0.81541861]
[1753110601010,3.17355645,3840.9,3840.8,0.04831861]
[1753110601212,4.2687882,3840.9,3840.8,0.04831861]
[1753110601506,1.23093175,3840.9,3840.8,0.04831861]
[1753110601709,18.3344882,3840.9,3840.8,0.04831861]
[1753110602582,18.7687882,3840.9,3840.8,0.04831861]
[1753110602787,15.73093175,3840.9,3840.8,0.04831861]
[1753110602984,14.52,3840.9,3840.8,0.04831861]
[1753110603195,14.52,3840.9,3840.8,0.50311861]
[1753110603403,14.52,3840.9,3840.8,0.04831861]
[1753110604201,17.67355645,3840.9,3840.8,0.04831861]
[1753110604384,17.80315645,3840.9,3840.8,0.04831861]
[1753110604606,19.84381894,3840.9,3840.8,0.04831861]
[1753110604824,21.04691894,3840.9,3840.8,0.04831861]
[1753110605146,3.15403726,3840.2,3839.6,4.085]
[1753110605430,0.55,3840.0,3839.6,4.085]
[1753110605796,14.5,3839.9,3839.6,4.085]
[1753110605999,0.55,3839.8,3839.6,4.085]
[1753110606208,0.55,3840.0,3839.5,4.2146]
[1753110606593,14.5,3839.7,3839.5,4.2146]
[1753110606986,0.55,3839.6,3839.5,0.1296]
[1753110607207,0.55,3839.6,3839.1,4.085]
[1753110607408,0.55,3839.6,3839.4,2.60454962]
[1753110607700,0.55,3839.6,3839.2,3.05950767]
[1753110608120,0.55,3839.6,3839.3,4.085]
[1753110608508,0.55,3839.6,3839.5,2.60450579]
[1753110608712,14.5,3839.7,3839.3,4.085]
[1753110608913,14.5,3839.7,3839.5,2.60450137]
[1753110609227,14.5,3839.7,3839.6,0.4548]
[1753110609534,14.5,3839.7,3839.6,3.05923796]
[1753110610139,0.1296,3840.1,3839.7,2.60437013]
[1753110610140,0.55,3840.0,3839.7,2.60437013]
[1753110610352,0.02,3840.9,3839.8,4.5398]
[1753110610652,0.1496,3840.9,3840.5,2.60378295]
[1753110610823,0.1496,3840.9,3840.6,4.085]
[1753110611150,0.02,3840.9,3840.6,5.84426463]
[1753110611445,0.02,3840.9,3840.8,2.73322424]
[1753110611844,0.02,3840.9,3840.8,3.18802424]
[1753110612210,0.02,3840.9,3840.8,6.96492424]
[1753110612457,0.02,3840.9,3840.8,11.04992424]
[1753110612755,0.02,3840.9,3840.8,12.46757166]
[1753110613452,0.02,3840.9,3840.8,0.1296]
[1753110613608,0.02,3840.9,3840.8,2.73322424]
[1753110613813,0.02,3840.9,3840.8,7.29906048]
[1753110614013,0.02,3840.9,3840.8,6.81822424]
[1753110614429,0.02,3840.9,3840.8,2.73322424]
[1753110614735,0.02,3840.9,3840.8,7.8792386]
[1753110614912,0.02,3840.9,3840.8,6.81822424]
[1753110615330,0.02,3840.9,3840.8,7.27302424]
[1753110616164,0.02,3840.9,3840.8,3.18802424]
[1753110616373,0.02,3840.9,3840.8,4.2146]
[1753110616666,0.02,3840.9,3840.8,4.085]
[1753110617416,0.02,3840.9,3840.6,0.1296]
[1753110617619,0.02,3840.9,3840.7,4.5577]
[1753110617820,0.02,3840.9,3840.8,3.07632424]
[1753110618030,0.02,3840.9,3840.8,8.12946048]
[1753110618219,0.02,3840.9,3840.8,4.2146]
[1753110618442,0.02,3840.9,3840.8,6.68862424]
[1753110618653,0.02,3840.9,3840.8,7.16132424]
[1753110619016,0.02,3840.9,3840.8,2.60362424]
[1753110619216,0.02,3840.9,3840.8,4.085]
[1753110619723,0.02,3840.9,3840.8,6.68862424]
[1753110619971,0.02,3840.9,3840.8,7.16132424]
[1753110620458,0.02,3840.9,3840.8,3.07632424]
[1753110620631,0.02,3840.9,3840.8,6.68862424]
[1753110621047,0.02,3840.9,3840.8,2.60362424]
[1753110621234,0.02,3840.9,3840.6,0.15563759]
[1753110621435,0.02,3840.9,3840.6,0.1296]
[1753110621640,0.02,3840.9,3840.7,4.085]
[1753110621834,0.02,3840.9,3840.7,2.60369203]
[1753110622153,0.02,3840.9,3840.8,4.084]
[1753110622555,0.02,3840.9,3840.6,0.1296]
[1753110622872,0.02,3840.9,3840.7,6.68766618]
[1753110623050,0.02,3840.9,3840.7,6.68768656]
[1753110623248,0.02,3840.9,3840.7,4.084]
[1753110623663,0.02,3840.9,3840.6,0.1296]
[1753110623863,0.02,3840.9,3840.8,4.084]
[1753110624685,0.02,3840.9,3840.8,6.68762424]
[1753110625355,0.02,3840.9,3840.8,8.10242121]
[1753110626870,0.02,3840.9,3840.8,8.23202121]
[1753110627095,0.02,3840.9,3840.8,2.73322424]
[1753110627256,0.02,3840.9,3840.8,6.81722424]
[1753110627456,0.02,3840.9,3840.4,1.2852]
[1753110627688,0.57,3840.9,3840.4,0.1296]
[1753110627897,0.1296,3840.4,3839.7,0.1296]
[1753110628075,0.55,3839.8,3838.9,0.8122]
[1753110628286,0.8069,3839.9,3838.5,0.001]
[1753110628287,0.1296,3839.5,3839.1,2.60477148]
[1753110628493,0.1296,3839.5,3839.0,6.68883798]
[1753110628693,0.55,3839.4,3839.0,4.084]
[1753110629176,0.55,3839.4,3839.1,4.084]
[1753110629784,0.55,3839.4,3838.8,2.73457345]
[1753110629982,0.55,3839.4,3838.9,4.084]
[1753110630305,0.55,3839.4,3839.0,4.084]
[1753110630604,0.55,3839.1,3838.6,0.1296]
[1753110630815,0.55,3838.9,3838.5,0.001]
[1753110630991,0.55,3838.9,3838.7,4.084]
[1753110631190,0.55,3838.9,3838.8,2.60498072]
[1753110631497,0.55,3838.9,3838.7,4.084]
[1753110631800,0.55,3838.9,3838.5,0.001]
[1753110631801,0.55,3838.9,3838.8,4.084]
[1753110632366,0.55,3838.7,3838.5,0.001]
[1753110632576,0.6796,3838.6,3838.5,0.001]
[1753110632775,4.52851644,3838.6,3838.5,0.001]
[1753110633400,4.39891644,3838.6,3838.5,0.001]
[1753110634503,1.7938,3838.6,3838.5,0.001]
[1753110634706,1.986763,3838.6,3838.5,0.001]
[1753110635010,0.808,3838.6,3838.5,0.001]
[1753110635299,1.2438,3838.6,3838.5,0.001]
[1753110635473,1.7938,3838.6,3838.5,0.001]
[1753110635820,4.39891644,3838.6,3838.5,0.001]
[1753110638404,6.27891644,3838.6,3838.5,0.001]
[1753110638604,11.25231119,3838.6,3838.5,0.001]
[1753110639879,11.25331119,3838.6,3838.5,0.001]
[1753110640280,7.16731119,3838.6,3838.5,0.001]
[1753110640582,11.25331119,3838.6,3838.5,0.001]
[1753110641318,9.37911644,3838.6,3838.5,0.001]
[1753110641498,9.92911644,3838.6,3838.5,0.001]
[1753110641819,10.36491644,3838.6,3838.5,0.001]
[1753110643915,9.37911644,3838.6,3838.5,0.001]
[1753110644078,6.774,3838.6,3838.5,0.001]
[1753110644580,7.324,3838.6,3838.5,0.001]
[1753110644782,6.774,3838.6,3838.5,0.001]
[1753110645110,1.88,3838.6,3838.5,0.001]
[1753110645315,0.7501,3839.4,3838.5,0.001]
[1753110645495,0.1296,3838.6,3838.5,3.07885771]
[1753110645696,0.1296,3838.6,3838.5,3.38674348]
[1753110645905,0.1296,3838.6,3838.5,0.30888577]
[1753110646225,3.28471644,3838.6,3838.5,0.001]
[1753110646376,0.6796,3838.6,3838.5,0.001]
[1753110646819,3.28471644,3838.6,3838.5,0.001]
[1753110647245,4.52791644,3838.6,3838.5,0.001]
[1753110647450,6.02772264,3838.6,3838.5,0.001]
[1753110648165,6.02772264,3838.6,3838.5,0.4744]
[1753110648166,0.1296,3838.6,3838.5,0.4744]
[1753110650910,0.1296,3838.6,3838.5,0.001]
[1753110651645,0.1296,3838.6,3838.5,0.4744]
[1753110652025,0.1296,3838.6,3838.5,0.001]
[1753110653449,3.28471644,3838.6,3838.5,0.001]
[1753110654250,0.1296,3838.6,3838.5,0.001]
[1753110654554,0.1296,3838.6,3838.5,0.4744]
[1753110656773,2.73471644,3838.6,3838.5,0.001]
[1753110657564,3.28471644,3838.6,3838.5,0.001]
[1753110659070,0.6796,3838.6,3838.5,0.001]
[1753110659228,3.28471644,3838.6,3838.5,0.001]
[1753110659429,0.6796,3838.6,3838.5,0.001]
[1753110660464,3.28471644,3838.6,3838.5,0.001]
[1753110660880,0.6796,3838.6,3838.5,0.001]
[1753110661045,3.28471644,3838.6,3838.5,0.001]
[1753110661241,0.1296,3838.6,3838.5,0.001]
[1753110661465,0.1296,3838.6,3838.5,0.4744]
[1753110662072,0.1296,3838.6,3838.5,0.001]
[1753110662648,0.1296,3838.6,3838.5,0.4744]
[1753110663946,0.1296,3838.6,3838.5,3.07958431]
[1753110664404,1.88,3838.9,3838.8,2.60498072]
[1753110664603,1.5676044,3839.5,3839.4,2.60457363]
[1753110664763,0.56075124,3839.9,3839.8,2.6043023]
[1753110664947,0.002,3840.0,3839.8,0.4734]
[1753110664948,0.1316,3840.0,3839.8,0.4734]
[1753110665149,0.56075124,3839.9,3839.4,3.88560942]
[1753110665449,0.56075124,3839.8,3839.5,0.4734]
[1753110665680,0.56075124,3839.9,3839.6,3.07779209]
[1753110665853,0.56075124,3839.9,3839.6,2.60439485]
[1753110666061,0.56075124,3839.9,3839.7,0.4734]
[1753110666261,0.56075124,3839.8,3839.7,0.4734]
[1753110666589,0.56075124,3839.9,3839.7,3.07776427]
[1753110666792,0.56075124,3839.9,3839.4,0.8077]
[1753110667083,0.56075124,3839.9,3839.8,0.4734]
[1753110667282,0.56075124,3839.9,3839.8,3.0777023]
[1753110667483,0.1316,3840.0,3839.8,0.4734]
[1753110667786,0.1316,3840.0,3839.9,3.07763448]
[1753110667988,0.1316,3840.0,3839.9,0.4734]
[1753110668405,0.1316,3840.0,3839.6,2.604425]
[1753110668552,0.1316,3840.0,3839.6,0.4734]
[1753110668746,0.1316,3840.0,3839.5,2.60446319]
[1753110669147,0.1316,3840.0,3839.4,0.8077]
[1753110669148,0.1316,3840.0,3839.3,0.15564641]
[1753110669451,0.1316,3840.0,3838.9,0.7706]
[1753110669452,0.1296,3839.3,3838.9,0.7706]
[1753110669657,0.1296,3839.3,3838.6,2.60506649]
[1753110669858,0.1296,3839.3,3838.5,3.92725184]
[1753110670056,0.56075124,3839.9,3839.3,0.7706]
[1753110670261,0.56075124,3839.9,3839.8,2.6043023]
[1753110670469,0.002,3840.0,3839.8,0.4734]
[1753110670714,0.002,3840.0,3839.6,3.0]
[1753110670890,2.60436046,3839.8,3839.3,1.244]
[1753110671090,2.60428613,3839.9,3839.3,1.244]
[1753110671471,0.56275124,3840.0,3839.3,1.244]
[1753110671771,3.16692675,3840.0,3839.4,2.60452751]
[1753110671972,3.16692675,3840.0,3839.3,3.37523045]
[1753110672173,2.99083636,3839.9,3839.0,3.4734]
[1753110672504,2.6043023,3839.8,3839.1,2.60471615]
[1753110672870,0.56275124,3840.0,3839.3,3.7756]
[1753110673089,0.002,3840.0,3839.4,0.49944573]
[1753110673292,0.002,3840.0,3839.4,0.4734]
[1753110673609,0.002,3840.0,3839.7,2.6043157]
[1753110673899,0.002,3840.0,3839.5,2.60450579]
[1753110674113,0.002,3840.0,3839.4,3.55934573]
[1753110674294,0.002,3840.0,3839.6,0.4734]
[1753110674696,0.002,3840.0,3839.4,3.55934573]
[1753110674697,0.002,3840.0,3839.7,0.4734]
[1753110675506,2.60621064,3840.0,3839.7,0.4734]
[1753110675666,0.002,3840.0,3839.7,0.4734]
[1753110675999,0.64914928,3840.0,3839.3,0.7756]
[1753110676204,2.60430563,3839.8,3839.3,0.7756]
[1753110676511,1.11262787,3840.0,3839.0,4.083]
[1753110676680,2.60446215,3839.6,3839.0,4.083]
[1753110676878,2.60451161,3839.5,3839.0,4.083]
[1753110677186,2.60458229,3839.4,3839.0,4.083]
[1753110677392,1.11062787,3839.9,3839.0,4.083]
[1753110677591,3.27050166,3839.8,3839.0,4.083]
[1753110677798,0.66614127,3839.8,3839.1,2.60476175]
[1753110677979,2.60449825,3839.6,3839.0,4.083]
[1753110678375,3.27045205,3839.8,3839.1,2.60472871]
[1753110678708,2.60437013,3839.7,3839.1,2.60472871]
[1753110678914,2.60437013,3839.7,3839.0,6.68783815]
[1753110679207,3.71140772,3839.7,3839.0,4.083]
[1753110679418,2.60450163,3839.6,3838.9,0.817]
[1753110679907,1.10703759,3839.7,3838.9,0.817]
[1753110680129,0.1296,3839.0,3838.5,0.7854]
[1753110680286,0.1296,3839.0,3838.6,2.60511644]
[1753110680608,0.1296,3839.0,3838.7,0.4447]
[1753110681168,0.1296,3839.0,3838.5,0.7854]
[1753110681404,0.1296,3839.0,3838.6,3.04980978]
[1753110681563,0.1296,3839.0,3838.6,2.60510978]
[1753110681768,0.1296,3839.0,3838.7,0.4447]
[1753110681967,0.1296,3839.3,3839.1,2.60476252]
[1753110682203,0.56092402,3839.8,3839.2,0.4447]
[1753110682409,0.1296,3839.5,3839.2,3.04936693]
[1753110682732,0.1296,3839.5,3838.9,0.1296]
[1753110682872,0.1296,3839.3,3838.8,6.68791694]
[1753110683073,0.1296,3839.3,3839.2,2.60470931]
[1753110683472,9.12820842,3839.9,3839.2,3.04940931]
[1753110683473,0.56092402,3839.8,3839.2,3.04940931]
[1753110683668,0.1296,3839.6,3839.3,3.36191673]
[1753110683986,0.1296,3839.6,3839.4,0.4447]
[1753110684384,0.1296,3839.6,3839.4,3.04921895]
[1753110685006,0.1296,3839.6,3839.5,0.4447]
[1753110685860,2.44092402,3839.9,3839.5,3.04920579]
[1753110686149,1.88,3839.9,3839.6,0.4447]
[1753110686325,0.56292402,3840.0,3839.6,0.4447]
[1753110686647,2.60424501,3839.9,3839.2,3.04936814]
[1753110686945,0.1296,3839.7,3839.2,3.04936814]
[1753110687147,2.60434759,3839.8,3839.2,0.4447]